bitfinex/quotes_ETHUSD_20240618
["timestamp","ask_amount","ask_price","bid_price","bid_amount"]
[1718714769275,4.20210274,3403.3,3401.3,2.4412]
[1718714769585,4.20210274,3403.3,3400.7,2.817]
[1718714769586,4.20210274,3403.6,3401.5,2.4412]
[1718714769791,2.13696494,3403.5,3401.5,2.4412]
[1718714770412,2.13696494,3403.5,3401.6,0.05878727]
[1718714770625,4.20210274,3403.6,3401.7,2.51687686]
[1718714770831,1.71611537,3403.5,3401.9,2.2612]
[1718714771125,4.71611537,3403.5,3402.0,0.05877685]
[1718714771327,4.71611537,3403.5,3402.1,0.23199769]
[1718714771616,3.0,3403.5,3402.2,0.05877684]
[1718714771820,3.0,3403.5,3402.3,0.05877684]
[1718714772120,4.20210274,3403.6,3402.4,2.8754]
[1718714772415,4.20210274,3403.6,3402.5,0.35218547]
[1718714772919,4.20210274,3404.3,3402.6,2.4987]
[1718714773223,4.20210274,3404.6,3402.8,2.4528]
[1718714773433,4.62231301,3404.6,3403.0,2.4528]
[1718714773733,4.20210274,3404.6,3403.1,0.05875549]
[1718714773883,4.20210274,3405.1,3403.2,3.0028]
[1718714774084,4.20210274,3405.5,3403.3,2.48214841]
[1718714774318,0.42021027,3405.4,3403.5,2.4234]
[1718714775086,2.817,3405.0,3403.5,2.4234]
[1718714775412,2.817,3405.3,3403.5,2.4234]
[1718714775739,1.2884813,3405.2,3403.5,2.4234]
[1718714776109,1.5825813,3405.2,3403.5,2.4234]
[1718714776407,0.55,3405.1,3403.5,2.4234]
[1718714776596,3.8441,3405.1,3403.5,2.4234]
[1718714776796,3.0,3405.0,3403.5,2.4234]
[1718714776992,0.2941,3404.7,3403.5,2.4234]
[1718714777330,2.817,3404.8,3403.5,2.4234]
[1718714777538,3.0,3404.9,3403.6,0.05875267]
[1718714777698,4.20210274,3405.5,3403.7,0.24821527]
[1718714777900,4.20210274,3405.5,3403.8,0.05874887]
[1718714779228,4.20210274,3405.5,3403.9,2.51324887]
[1718714779396,4.20210274,3405.9,3403.9,2.4545]
[1718714779597,2.817,3405.6,3403.9,2.4545]
[1718714779796,0.2817,3405.5,3404.0,0.24545]
[1718714780315,0.2817,3405.5,3403.9,2.4545]
[1718714780645,3.2817,3405.5,3404.0,0.05874885]
[1718714780799,7.49620274,3405.9,3404.0,0.05874885]
[1718714780800,3.0,3405.8,3404.0,0.05874885]
[1718714781331,3.0,3405.8,3404.1,2.4172]
[1718714781546,1.94321027,3405.7,3404.2,0.30633664]
[1718714781717,1.94321027,3405.7,3404.3,0.05874175]
[1718714782436,1.94321027,3405.7,3404.1,2.4172]
[1718714783034,1.94321027,3405.7,3404.2,0.05874776]
[1718714783198,1.2439413,3405.6,3404.1,2.4172]
[1718714783403,4.2439413,3405.6,3404.1,2.4172]
[1718714784604,3.0,3405.5,3404.1,2.4172]
[1718714784802,1.2439413,3405.6,3404.1,2.4172]
[1718714785030,0.42439413,3405.5,3404.1,2.4172]
[1718714785213,2.817,3405.2,3404.1,2.4172]
[1718714785635,3.0,3405.1,3404.1,2.4172]
[1718714786008,6.0,3405.1,3403.6,2.3707]
[1718714786227,0.8758,3405.0,3403.6,2.3707]
[1718714786602,0.2941,3404.6,3403.6,2.3707]
[1718714786815,3.2941,3404.6,3403.6,2.3707]
[1718714787936,6.2941,3404.6,3403.6,2.3707]
[1718714788143,1.75521,3404.5,3402.6,2.2958]
[1718714788319,1.20521,3404.5,3402.7,0.05877115]
[1718714788516,1.20521,3404.5,3402.9,2.3246]
[1718714788517,0.91111,3404.5,3402.9,2.3246]
[1718714788838,3.0,3404.6,3402.2,5.911]
[1718714788839,3.0,3404.6,3403.0,2.3246]
[1718714789046,4.20210274,3404.9,3403.1,2.44785579]
[1718714789219,5.26218301,3404.9,3403.1,2.3891]
[1718714789626,5.26218301,3404.9,3403.2,0.05875648]
[1718714789949,5.26218301,3404.9,3403.2,2.3891]
[1718714790135,5.26218301,3404.9,3403.4,2.3891]
[1718714790447,0.5262183,3404.8,3403.4,2.3891]
[1718714790649,1.06008027,3404.9,3403.4,2.3891]
[1718714790650,1.35418027,3404.9,3403.4,2.3891]
[1718714791310,3.1111,3404.7,3403.4,2.3891]
[1718714791509,0.2941,3404.5,3403.4,2.3891]
[1718714792047,0.55,3404.4,3403.4,2.3891]
[1718714792244,0.38441,3404.3,3403.4,2.3891]
[1718714793745,3.0,3404.7,3403.4,2.3891]
[1718714794206,0.2941,3405.0,3403.4,2.3891]
[1718714794612,3.0,3405.1,3403.4,2.3891]
[1718714794816,7.01910274,3405.2,3403.5,0.05875768]
[1718714795132,7.01910274,3405.2,3403.6,2.46575247]
[1718714795133,4.20210274,3405.2,3403.6,2.46575247]
[1718714795336,12.23,3405.9,3404.0,2.407]
[1718714795337,4.20210274,3405.9,3404.0,2.407]
[1718714795516,4.20210274,3406.2,3404.2,2.2988]
[1718714795717,0.2941,3406.1,3404.4,2.2988]
[1718714795925,0.2941,3405.8,3404.4,2.2988]
[1718714796146,0.32941,3405.7,3404.5,0.05874746]
[1718714796356,7.01910274,3406.2,3404.4,2.2988]
[1718714796707,0.2941,3406.1,3404.4,2.2988]
[1718714796920,3.2941,3406.1,3404.4,2.2988]
[1718714797150,1.08216803,3406.0,3404.5,0.22988]
[1718714797362,0.97626803,3406.0,3404.5,0.22988]
[1718714797711,0.97626803,3406.0,3404.4,2.2988]
[1718714798008,2.817,3405.7,3404.4,2.2988]
[1718714798245,3.0,3405.6,3404.4,2.2988]
[1718714798637,0.68216803,3406.0,3404.4,2.2988]
[1718714798842,0.48842708,3405.9,3404.4,2.2988]
[1718714800417,3.1111,3405.8,3404.4,2.2988]
[1718714800738,3.0,3405.7,3404.4,2.2988]
[1718714801110,3.0,3405.8,3404.4,2.2988]
[1718714801315,0.41705951,3405.7,3404.4,2.2988]
[1718714801510,0.2941,3405.8,3404.4,2.2988]
[1718714801711,3.2941,3405.8,3404.4,2.2988]
[1718714802016,3.55,3405.7,3404.4,2.2988]
[1718714802254,0.70384271,3405.6,3404.4,2.2988]
[1718714802555,0.2941,3405.4,3404.4,2.2988]
[1718714804026,0.2941,3405.4,3402.4,2.817]
[1718714804027,0.2941,3405.1,3403.0,2.4083]
[1718714804228,0.36611,3405.0,3403.1,0.24083]
[1718714805359,0.36611,3405.0,3403.0,2.4083]
[1718714805360,0.2941,3404.6,3403.0,2.4083]
[1718714805512,2.817,3404.7,3403.0,2.4083]
[1718714805513,0.8441,3404.5,3403.0,2.4083]
[1718714805936,3.8441,3404.5,3403.0,2.4083]
[1718714806138,3.96611,3404.4,3403.0,2.4083]
[1718714806357,0.55,3404.3,3403.0,2.4083]
[1718714808032,2.817,3404.1,3403.0,2.4083]
[1718714808232,3.0,3404.0,3403.0,2.4083]
[1718714808436,3.0,3404.0,3401.5,8.541989]
[1718714808437,0.55,3403.9,3401.6,2.4593]
[1718714808673,1.1317,3403.9,3401.7,2.51808272]
[1718714808966,1.1317,3403.9,3401.8,0.05878272]
[1718714809166,0.69487,3403.8,3401.9,0.25180827]
[1718714809571,0.69487,3403.8,3402.0,2.45688269]
[1718714811391,0.69487,3403.8,3402.0,2.3981]
[1718714811944,0.69487,3403.8,3402.1,0.55]
[1718714812677,0.69487,3403.8,3402.0,2.3981]
[1718714812901,2.13672667,3403.7,3402.0,2.3981]
[1718714813061,0.34132967,3403.6,3402.1,0.23981]
[1718714813448,0.69487,3403.8,3402.1,0.23981]
[1718714813655,2.13675322,3403.7,3402.1,0.23981]
[1718714813854,5.13675322,3403.7,3402.1,0.23981]
[1718714814148,2.13675322,3403.6,3402.1,0.23981]
[1718714814358,5.13675322,3403.6,3402.1,0.23981]
[1718714814561,3.01991554,3403.5,3402.2,0.263791]
[1718714814767,3.0,3403.4,3402.2,0.263791]
[1718714815151,3.69487,3403.8,3402.2,0.263791]
[1718714815349,2.91525102,3403.7,3402.2,0.263791]
[1718714815572,5.13663217,3403.6,3402.3,0.05877845]
[1718714815850,3.0,3404.4,3402.4,2.2866]
[1718714816075,2.13638505,3404.1,3402.6,2.2866]
[1718714816277,3.0,3404.4,3402.8,2.2866]
[1718714816493,3.0,3404.4,3402.9,0.348299]
[1718714817542,3.0,3404.1,3402.9,0.348299]
[1718714818700,3.0,3404.1,3402.9,0.28953627]
[1718714818899,3.0,3404.1,3402.8,2.2866]
[1718714818900,2.1363777,3404.0,3402.8,2.2866]
[1718714819467,5.753,3403.9,3402.1,2.3118]
[1718714819783,6.50701547,3403.8,3402.2,0.23118]
[1718714819961,2.1363777,3403.7,3402.2,0.23118]
[1718714820364,2.817,3403.6,3402.1,2.3118]
[1718714820560,5.1363777,3403.5,3402.1,2.3118]
[1718714820775,2.1363777,3403.4,3402.1,2.3118]
[1718714821158,0.55,3403.3,3402.1,2.3118]
[1718714821383,2.70501547,3403.2,3402.1,2.3118]
[1718714821581,5.1363777,3403.1,3400.7,2.336]
[1718714821781,2.1363777,3403.0,3400.7,2.336]
[1718714821986,2.1363777,3403.0,3400.8,0.2336]
[1718714821987,0.57050155,3402.9,3400.8,0.2336]
[1718714822189,2.1363777,3402.8,3400.8,0.2336]
[1718714822584,5.1363777,3402.8,3400.8,0.2336]
[1718714822932,2.1363777,3402.7,3400.8,0.2336]
[1718714823048,3.93768793,3402.6,3400.8,0.2336]
[1718714823247,2.1363777,3402.5,3400.8,0.2336]
[1718714823471,5.1363777,3402.5,3400.8,0.2336]
[1718714823673,2.9808777,3402.4,3400.7,2.336]
[1718714823994,0.2945,3402.2,3400.7,2.336]
[1718714824162,2.1363777,3402.1,3400.7,2.336]
[1718714824350,2.67946547,3402.0,3400.7,2.336]
[1718714824546,5.1363777,3401.9,3400.7,2.336]
[1718714824861,3.0,3401.9,3400.7,2.336]
[1718714825062,2.13791815,3401.8,3399.6,2.4549]
[1718714825261,2.4109,3401.8,3399.7,0.05881543]
[1718714825467,2.817,3401.6,3399.8,0.05882302]
[1718714825675,2.817,3401.6,3399.6,2.7366]
[1718714825676,0.2945,3401.4,3399.7,0.27366]
[1718714825983,3.51315316,3401.3,3399.7,0.27366]
[1718714826156,5.13818469,3401.2,3399.7,0.27366]
[1718714826358,1.37496847,3401.3,3399.7,0.27366]
[1718714826556,1.37496847,3401.3,3399.6,2.4549]
[1718714826557,0.43749685,3401.2,3399.8,0.272856]
[1718714827359,0.43749685,3401.2,3399.6,2.4549]
[1718714827564,0.55,3401.1,3399.6,2.4549]
[1718714827952,3.0,3400.9,3398.4,2.3081]
[1718714828158,8.68768771,3400.8,3398.5,0.348677]
[1718714828359,6.5489,3400.8,3398.6,0.05884024]
[1718714828553,6.5489,3400.8,3398.5,0.348677]
[1718714828758,3.09378696,3400.7,3398.6,0.2656777]
[1718714828970,3.55,3400.6,3398.6,0.2656777]
[1718714829187,3.0,3400.5,3398.6,0.2656777]
[1718714829362,0.55,3400.4,3398.6,0.2656777]
[1718714829556,0.750379,3400.5,3398.6,0.2656777]
[1718714829775,0.55,3400.4,3398.6,0.2656777]
[1718714829970,0.750379,3400.5,3398.6,0.2656777]
[1718714830268,0.95489,3400.7,3398.7,0.05884089]
[1718714830471,0.2945,3401.3,3399.0,2.817]
[1718714830795,3.0,3400.8,3399.1,0.28758312]
[1718714830995,3.0,3400.8,3398.5,2.2919]
[1718714831357,2.817,3400.6,3398.5,2.2919]
[1718714831581,0.5817,3400.5,3398.6,0.22919]
[1718714831891,5.3738,3400.4,3398.6,0.22919]
[1718714832123,3.0,3400.3,3398.6,0.22919]
[1718714832484,0.55,3400.2,3398.6,0.22919]
[1718714834185,3.0,3400.3,3398.6,0.28803424]
[1718714834388,3.0,3400.3,3398.5,2.2919]
[1718714834389,0.83738,3400.2,3398.7,0.25799342]
[1718714834649,5.3738,3400.4,3398.5,2.2919]
[1718714834650,3.0,3400.3,3398.5,2.2919]
[1718714835736,3.0,3400.3,3398.6,0.05884459]
[1718714835952,3.0,3400.3,3398.6,0.05884354]
[1718714836148,5.3738,3400.4,3398.6,0.05884354]
[1718714836352,7.20210274,3400.5,3398.8,2.817]
[1718714836353,4.20210274,3400.5,3398.8,2.817]
[1718714836551,3.80210274,3400.5,3398.9,2.38192957]
[1718714837155,3.80210274,3401.5,3399.9,2.817]
[1718714837365,3.80210274,3401.5,3400.4,2.817]
[1718714837563,3.80210274,3401.5,3400.1,2.2587]
[1718714838061,2.3351,3401.4,3399.3,2.3984]
[1718714838366,0.2945,3401.2,3399.3,2.63824]
[1718714838539,0.61372027,3401.3,3399.3,2.63824]
[1718714838915,0.92038453,3401.3,3399.3,2.63824]
[1718714839116,0.92038453,3401.3,3398.5,2.3543]
[1718714839117,3.0,3401.0,3398.5,2.3543]
[1718714839350,0.2945,3400.9,3398.5,2.3543]
[1718714839541,0.62395,3400.8,3398.6,0.23543]
[1718714840700,0.55,3400.7,3398.7,0.05883713]
[1718714840861,0.2945,3400.8,3398.9,2.3164]
[1718714841071,3.0,3400.9,3398.9,2.3164]
[1718714841072,3.0,3400.9,3399.2,2.817]
[1718714841286,3.0,3400.9,3399.3,0.05882773]
[1718714841851,3.0,3400.9,3398.9,2.3164]
[1718714842991,3.0,3400.9,3399.2,2.2732]
[1718714843289,3.80210274,3401.4,3399.7,2.2732]
[1718714843476,3.0,3401.3,3399.8,0.60880487]
[1718714843681,3.80210274,3401.4,3399.8,0.60880487]
[1718714843682,3.80210274,3401.4,3400.1,2.817]
[1718714843856,2.4796,3402.5,3400.2,0.60880137]
[1718714843857,3.80210274,3401.8,3400.2,0.60880137]
[1718714844063,3.80210274,3401.8,3400.4,2.3117]
[1718714844293,3.80210274,3401.8,3400.5,0.60879878]
[1718714844591,3.80210274,3401.8,3400.5,0.55]
[1718714844789,3.80210274,3401.8,3400.6,0.05879913]
[1718714845100,3.80210274,3402.1,3400.7,0.55]
[1718714845269,12.23,3402.7,3400.8,0.05879463]
[1718714845270,3.80210274,3402.4,3400.8,0.05879463]
[1718714845476,3.80210274,3402.4,3400.8,0.365317]
[1718714845785,3.80210274,3402.4,3400.6,0.28617]
[1718714846361,4.09660274,3402.4,3400.4,2.3117]
[1718714846569,3.0,3402.3,3400.4,2.3117]
[1718714846870,3.0,3402.3,3400.5,0.05880756]
[1718714847074,3.0,3402.3,3400.4,2.3117]
[1718714847075,3.80210274,3402.4,3400.6,2.41500386]
[1718714847271,3.80210274,3402.4,3400.8,2.3562]
[1718714847470,3.80210274,3402.4,3400.9,0.55]
[1718714847901,3.80210274,3402.4,3401.0,0.05878415]
[1718714848106,3.80210274,3402.4,3401.1,2.9062]
[1718714848306,3.80210274,3402.4,3401.2,0.05878416]
[1718714848458,3.80210274,3402.4,3401.3,0.84649842]
[1718714849601,3.80210274,3402.4,3401.4,0.05879226]
[1718714849806,6.80210274,3402.7,3401.5,2.4126]
[1718714849957,6.80210274,3402.7,3401.6,0.82678907]
[1718714850167,3.80210274,3402.7,3401.6,0.82678907]
[1718714850696,3.80210274,3402.7,3401.6,0.27678907]
[1718714851266,3.80210274,3402.7,3401.5,2.4126]
[1718714851661,3.0,3402.6,3401.5,2.4126]
[1718714852996,3.0,3402.6,3401.6,0.05878978]
[1718714854198,3.80210274,3402.7,3401.6,0.05878978]
[1718714854398,3.0,3403.2,3401.8,2.2539]
[1718714854700,3.80210274,3404.0,3402.0,2.354]
[1718714854905,2.4704,3404.3,3402.2,2.354]
[1718714854906,3.80210274,3404.3,3402.2,2.354]
[1718714855091,3.0,3404.2,3402.3,0.0587656]
[1718714855409,0.98021027,3404.1,3402.4,0.29627656]
[1718714855573,0.98021027,3404.1,3402.5,0.05876559]
[1718714856068,0.98021027,3404.1,3402.4,0.29627656]
[1718714856295,0.98021027,3404.1,3402.5,0.55]
[1718714856599,0.98021027,3404.1,3402.6,0.05876557]
[1718714856797,0.7782313,3404.0,3402.5,0.55]
[1718714857166,0.7782313,3404.0,3402.4,0.29627656]
[1718714857910,0.7782313,3404.0,3402.2,2.354]
[1718714858078,0.7782313,3404.0,3402.3,0.05877713]
[1718714858417,3.0,3404.2,3402.3,0.05877713]
[1718714858606,3.0,3404.2,3402.4,2.306]
[1718714858807,3.0,3404.2,3402.6,2.306]
[1718714859499,3.0,3404.2,3402.7,0.60875916]
[1718714859701,3.0,3404.2,3402.8,0.29147592]
[1718714861305,3.0,3404.2,3402.9,0.05876109]
[1718714861504,3.0,3404.2,3403.0,2.4106]
[1718714861713,6.80210274,3404.9,3403.2,2.4048]
[1718714861999,3.0,3404.9,3403.3,0.90422743]
[1718714862212,3.0,3404.9,3403.4,2.273]
[1718714862420,5.4417,3406.1,3403.6,2.273]
[1718714862599,3.84417,3406.0,3403.7,0.89104054]
[1718714862799,3.84417,3406.0,3403.9,2.273]
[1718714863002,0.84417,3406.0,3403.9,2.273]
[1718714863423,0.84417,3406.0,3404.0,0.55]
[1718714863588,3.0,3406.2,3404.0,0.55]
[1718714864416,0.2945,3406.4,3404.1,0.05873672]
[1718714864602,0.2945,3406.4,3404.3,2.4262]
[1718714864802,0.2945,3406.4,3404.4,0.05873238]
[1718714865016,0.57362,3406.3,3404.5,0.24849324]
[1718714865322,0.57362,3406.3,3404.3,2.4262]
[1718714865323,0.57362,3406.3,3404.6,0.05873668]
[1718714865814,0.57362,3406.3,3404.3,2.4262]
[1718714866021,0.57362,3406.3,3404.4,0.55]
[1718714866614,0.57362,3406.3,3404.5,2.44772714]
[1718714866818,3.0,3407.1,3404.7,2.389]
[1718714866819,6.0,3407.1,3404.7,2.389]
[1718714867207,3.0,3407.1,3404.7,2.389]
[1718714867385,3.0,3407.1,3404.8,0.05872713]
[1718714867586,0.0511686,3407.4,3405.0,2.4995]
[1718714867587,0.53606,3407.0,3405.0,2.4995]
[1718714867786,3.80210274,3407.4,3405.5,2.819]
[1718714867987,3.80210274,3407.7,3405.6,3.10820884]
[1718714868218,3.80210274,3407.7,3405.7,0.05870743]
[1718714868523,3.80210274,3407.7,3405.8,3.0364]
[1718714868821,3.80210274,3407.7,3405.9,0.30364]
[1718714869501,3.0,3407.6,3405.9,0.30364]
[1718714870841,1.97754866,3409.0,3405.9,0.30364]
[1718714870842,0.2945,3407.9,3405.9,0.30364]
[1718714871042,0.05112966,3409.0,3405.8,2.4864]
[1718714871043,0.2945,3407.5,3405.8,2.4864]
[1718714871448,0.30675598,3407.8,3404.9,0.24477271]
[1718714871449,3.0,3407.6,3404.9,0.24477271]
[1718714871630,2.4789,3407.7,3402.3,3.54507688]
[1718714871631,2.4789,3406.3,3404.2,2.2721]
[1718714871953,3.0,3406.8,3404.2,2.2721]
[1718714872106,3.9051,3406.7,3404.3,0.22721]
[1718714872446,0.2945,3406.3,3404.3,0.22721]
[1718714872643,3.2945,3406.3,3404.3,0.22721]
[1718714872806,0.62945,3406.2,3404.4,0.30866533]
[1718714873007,0.92395,3406.2,3404.4,0.249931]
[1718714873343,3.2945,3406.0,3404.4,0.249931]
[1718714873539,3.0,3405.9,3404.4,0.249931]
[1718714873755,3.0,3405.9,3404.5,0.05874174]
[1718714873963,0.2945,3406.0,3404.5,0.05874174]
[1718714874270,3.0,3406.4,3404.5,0.05874174]
[1718714874271,0.2945,3406.3,3404.5,0.05874174]
[1718714874541,0.34916053,3406.3,3404.5,0.05874174]
[1718714874741,0.2945,3406.5,3404.4,0.249931]
[1718714875743,0.2945,3406.2,3404.4,0.249931]
[1718714875942,0.62395,3406.1,3404.4,0.249931]
[1718714877032,0.2945,3405.9,3404.4,0.249931]
[1718714877357,3.2945,3405.9,3404.2,2.2721]
[1718714877555,0.55,3405.8,3404.2,2.2721]
[1718714877844,3.8445,3405.8,3404.2,2.2721]
[1718714878005,0.68445,3405.7,3404.2,2.49931]
[1718714878203,3.68445,3405.7,3404.2,2.49931]
[1718714878425,0.68445,3405.7,3404.2,2.49931]
[1718714878816,3.0,3405.5,3404.2,2.2721]
[1718714879015,0.2945,3405.3,3403.0,2.3406]
[1718714879216,0.67895,3405.2,3403.1,0.97706]
[1718714879435,0.67895,3405.2,3403.0,2.3406]
[1718714879645,0.2945,3405.0,3403.0,2.3406]
[1718714879834,0.2945,3405.0,3403.1,0.23406]
[1718714880211,3.2945,3405.0,3403.1,0.23406]
[1718714880466,0.2945,3404.8,3403.1,0.23406]
[1718714881119,0.2945,3404.8,3403.2,0.05876214]
[1718714881620,3.2945,3404.6,3403.1,0.23406]
[1718714881826,3.2945,3404.6,3403.0,2.5406]
[1718714882154,3.55,3404.5,3403.0,2.5406]
[1718714882763,4.34899377,3404.5,3403.0,2.5406]
[1718714882930,1.12668893,3404.4,3403.0,2.5406]
[1718714883125,3.0,3404.2,3403.0,0.2]
[1718714883446,0.2945,3403.7,3403.0,0.2]
[1718714883647,0.97905,3403.6,3403.0,0.2]
[1718714886399,3.0,3403.4,3403.0,0.2]
[1718714886678,3.0,3403.3,3403.0,0.2]
[1718714887653,0.2945,3403.5,3403.0,0.2]
[1718714887878,0.2945,3403.6,3403.0,0.2]
[1718714888088,0.668455,3403.5,3403.0,0.2]
[1718714888247,3.0,3403.4,3403.0,0.2]
[1718714888446,3.55,3403.4,3403.0,0.2]
[1718714888695,3.0,3403.3,3403.0,0.2]
[1718714889006,0.7212955,3403.2,3403.0,0.2]
[1718714889158,0.5752955,3403.2,3403.0,0.2]
[1718714889498,5.12831888,3403.1,3403.0,0.2]
[1718714889649,8.12831888,3403.1,3403.0,0.2]
[1718714889997,8.67831888,3403.1,3403.0,0.2]
[1718714890158,10.31378032,3403.1,3403.0,0.2]
[1718714890548,9.93478832,3403.1,3403.0,0.2]
[1718714891253,7.78919923,3403.1,3403.0,0.2]
[1718714891459,21.53090623,3403.1,3403.0,0.2]
[1718714891901,24.35790623,3403.1,3403.0,0.2]
[1718714892061,0.2945,3402.0,3400.7,2.296]
[1718714892255,2.827,3401.6,3400.7,2.296]
[1718714892572,3.0,3401.5,3400.7,2.296]
[1718714893904,0.2945,3401.9,3400.7,2.296]
[1718714894197,0.2945,3401.7,3400.7,2.296]
[1718714894559,0.55,3401.6,3400.7,2.296]
[1718714894805,0.2945,3401.5,3400.1,2.4158]
[1718714895309,6.564,3401.3,3398.6,2.2957]
[1718714895473,0.98035,3401.2,3398.8,2.2957]
[1718714895673,4.53035,3401.2,3398.8,2.2957]
[1718714895873,4.53035,3401.2,3398.9,0.05882899]
[1718714896084,3.98035,3401.2,3399.0,2.4761]
[1718714896289,3.0,3401.2,3399.2,2.4761]
[1718714896517,3.76091891,3401.6,3399.2,2.4761]
[1718714896518,6.76091891,3401.6,3399.2,2.4761]
[1718714896694,1.60630217,3401.5,3399.3,0.24761]
[1718714896899,3.0,3401.1,3399.2,2.4761]
[1718714897217,3.55,3401.0,3399.2,2.4761]
[1718714897826,3.55,3401.0,3399.3,0.05882894]
[1718714898444,3.15,3401.0,3399.3,0.05882891]
[1718714898730,3.15,3401.0,3399.4,0.25349289]
[1718714898731,0.68445,3400.9,3399.4,0.25349289]
[1718714899881,0.68445,3400.9,3399.2,2.4761]
[1718714900129,3.0,3400.7,3399.2,2.4761]
[1718714900329,0.2945,3400.6,3399.2,2.4761]
[1718714900585,0.2945,3400.6,3397.8,2.4841]
[1718714900586,3.0,3400.2,3397.8,2.4841]
[1718714900903,3.55,3400.1,3398.0,2.395]
[1718714901337,3.55,3400.1,3397.1,3.098]
[1718714901338,3.0,3400.1,3398.1,2.45384163]
[1718714901560,3.0,3400.3,3398.2,2.57448416]
[1718714901836,3.0,3400.3,3398.3,2.3291]
[1718714901837,0.2945,3400.2,3398.3,2.3291]
[1718714902014,0.70966027,3400.1,3398.4,0.25744842]
[1718714902238,0.70966027,3400.1,3398.5,0.05884127]
[1718714904165,0.55,3400.0,3398.5,2.3986]
[1718714904437,0.8445,3400.1,3398.5,2.3986]
[1718714904640,0.68445,3400.0,3398.6,0.23986]
[1718714904842,0.55,3399.9,3398.6,0.23986]
[1718714905004,0.55,3399.9,3398.5,2.3986]
[1718714905711,3.0,3399.8,3398.5,2.3986]
[1718714906043,3.55,3399.7,3398.5,2.3986]
[1718714906455,3.55,3399.7,3397.2,2.3833]
[1718714906740,0.655,3399.6,3397.4,2.3833]
[1718714906917,3.0,3399.4,3397.4,2.3833]
[1718714907103,3.55,3399.3,3397.4,2.3833]
[1718714908654,3.55,3399.3,3397.5,0.05885909]
[1718714908822,0.88043,3399.2,3397.6,0.24421591]
[1718714909002,0.55,3399.1,3397.6,0.24421591]
[1718714909349,0.55,3399.1,3397.4,2.3833]
[1718714909941,0.2945,3399.0,3397.4,2.3833]
[1718714910144,0.55,3398.9,3397.4,2.3833]
[1718714910462,3.0,3399.3,3397.5,0.05886351]
[1718714910740,3.0,3399.3,3397.6,2.56751635]
[1718714910905,3.0,3399.3,3397.6,2.3233]
[1718714911324,3.0,3399.3,3396.9,2.3233]
[1718714911325,0.2945,3399.1,3396.9,2.3233]
[1718714911554,3.2945,3399.1,3396.9,2.3233]
[1718714911864,0.89658187,3399.0,3397.0,0.23233]
[1718714912234,0.55,3398.9,3397.0,0.23233]
[1718714914481,3.2945,3399.1,3397.0,0.23233]
[1718714914828,3.2945,3399.1,3397.1,0.05886315]
[1718714915134,3.2945,3399.1,3397.1,0.32031247]
[1718714915135,0.5559,3399.0,3397.1,0.32031247]
[1718714915323,0.2945,3399.1,3397.2,2.2753]
[1718714916065,2.3591,3398.8,3397.2,2.2753]
[1718714916279,2.832,3397.7,3396.2,0.46156091]
[1718714916627,3.0,3397.6,3396.2,0.46156091]
[1718714916862,2.84015332,3397.6,3396.2,0.46156091]
[1718714917092,2.84015332,3397.6,3396.3,2.4173]
[1718714917244,2.84015332,3397.6,3396.4,0.05887607]
[1718714917582,3.2945,3398.1,3396.3,2.4173]
[1718714917583,3.2945,3398.1,3396.5,0.05887763]
[1718714917739,3.0,3398.1,3396.5,0.35265148]
[1718714918286,3.43829657,3398.1,3396.5,0.29377385]
[1718714918577,3.43829657,3398.1,3396.6,0.05887554]
[1718714918578,0.43829657,3398.1,3396.6,0.05887554]
[1718714918781,0.43829657,3398.6,3396.7,2.252]
[1718714918981,3.43829657,3398.6,3396.8,0.31932834]
[1718714919202,3.0,3398.9,3396.9,2.3056]
[1718714919341,3.655,3399.6,3397.0,0.55]
[1718714919342,3.2945,3399.2,3397.0,0.55]
[1718714919688,3.0,3399.1,3397.1,0.28556]
[1718714919983,3.0,3399.1,3397.2,2.4527]
[1718714920163,0.2945,3399.2,3397.2,2.4527]
[1718714920367,0.2945,3399.2,3397.2,2.781526]
[1718714920368,0.2945,3398.9,3397.2,2.781526]
[1718714920890,0.50951966,3399.6,3397.2,2.4527]
[1718714920891,0.2945,3398.5,3397.2,2.4527]
[1718714921068,3.1265,3398.6,3397.2,2.4527]
[1718714921251,1.49497966,3398.5,3397.2,2.4527]
[1718714921946,4.49497966,3398.5,3397.2,2.4527]
[1718714923768,0.43829657,3398.8,3397.2,2.4527]
[1718714924109,0.55,3398.7,3397.2,2.4527]
[1718714924264,3.80210274,3399.0,3397.3,0.0588658]
[1718714924584,3.0,3398.9,3397.3,0.0588658]
[1718714924812,3.0,3398.9,3397.4,0.25115658]
[1718714924959,3.80210274,3399.0,3397.4,0.25115658]
[1718714925164,3.80210274,3399.0,3397.5,0.05885439]
[1718714925481,3.80210274,3399.0,3397.6,2.4056]
[1718714926604,3.0,3398.9,3397.6,2.4056]
[1718714926925,3.68021027,3398.9,3397.7,0.24056]
[1718714927240,3.68021027,3398.9,3397.6,2.4056]
[1718714927728,4.18969294,3398.9,3397.6,2.4056]
[1718714928432,0.55,3398.8,3397.6,2.4056]
[1718714929044,4.48425019,3398.9,3397.6,2.4056]
[1718714929241,3.97471027,3398.9,3397.6,2.4056]
[1718714929416,0.7776813,3398.8,3397.6,2.4056]
[1718714930035,0.55,3398.7,3397.6,2.4056]
[1718714931532,0.7776813,3398.8,3397.6,2.4056]
[1718714932844,3.0,3398.9,3397.6,2.4056]
[1718714935562,0.55,3398.8,3397.6,2.4056]
[1718714937379,2.13971679,3398.7,3397.6,2.4056]
[1718714937696,5.13971679,3398.7,3397.6,2.4056]
[1718714937902,2.70874747,3398.6,3397.6,2.4056]
[1718714938065,3.0,3398.5,3397.6,2.4056]